Cogmind - Beta 11 X7 @@@ ROGUE MODE // 2021.08.25 @ 10:25:52 Player: PhenomPhear Result: Destroyed by S-27 Virus with Autogun Performance ------------- Evolutions (5) 2500 Regions Visited (12) 2400 Robots Destroyed (0) 0 Value Destroyed (0) 0 Prototype IDs (0) 0 Alien Tech Used (0) 0 Bonus (1987) 1987 TOTAL SCORE: 6887 Bonus ------- Pacifist 1987 Cogmind --------- Core Integrity 0/1000 Matter 300/300 Energy 99/100 System Corruption 0% Temperature Cool (0) Movement Core (50) Location -5/Factory Parts ------- > --- POWER (1) -------- (None) > --- PROPULSION (8) --- (None) > --- UTILITY (6) ------ (None) > --- WEAPON (2) ------- (None) > --- INVENTORY (5) ---- (None) Peak State ------------ > --- POWER ------------ (None) > --- PROPULSION ------- Field Propulsion Drive > --- UTILITY ---------- (None) > --- WEAPON ----------- (None) > --- INVENTORY -------- (None) [Rating: 6] Favorites ----------- Power None Propulsion Field Propulsion Drive Flight Unit Field Propulsion Drive Utility None Weapon None Build | -11 -10 -9 -8 -7 -7 -7 -6 -6 -6 -6 -6 -5 ------- Run | Scr Mat Mat Mat Fac Was Fac Fac Was Fac Low Low Fac Slots Evolved 10 | . . 2 2 2 . . 2 . . . . 2 Power . | . . . . . . . . . . . . . Propulsion 6 | . . 2 2 2 . . . . . . . . Utility 4 | . . . . . . . 2 . . . . 2 Weapon . | . . . . . . . . . . . . . Parts Attached 2 | . . . . . . . 1 1 . . . . Power . | . . . . . . . . . . . . . Engine . | . . . . . . . . . . . . . Core . | . . . . . . . . . . . . . Reactor . | . . . . . . . . . . . . . Propulsion 2 | . . . . . . . 1 1 . . . . Treads . | . . . . . . . . . . . . . Leg . | . . . . . . . . . . . . . Wheel . | . . . . . . . . . . . . . Hover . | . . . . . . . . . . . . . Flight 2 | . . . . . . . 1 1 . . . . Utility . | . . . . . . . . . . . . . Device . | . . . . . . . . . . . . . Storage . | . . . . . . . . . . . . . Processor . | . . . . . . . . . . . . . Hackware . | . . . . . . . . . . . . . Protection . | . . . . . . . . . . . . . Artifact . | . . . . . . . . . . . . . Weapon . | . . . . . . . . . . . . . Energy Gun . | . . . . . . . . . . . . . Energy Cannon . | . . . . . . . . . . . . . Ballistic Gun . | . . . . . . . . . . . . . Ballistic Cannon . | . . . . . . . . . . . . . Launcher . | . . . . . . . . . . . . . Special Weapon . | . . . . . . . . . . . . . Impact Weapon . | . . . . . . . . . . . . . Slashing Weapon . | . . . . . . . . . . . . . Piercing Weapon . | . . . . . . . . . . . . . Special Melee Weapon . | . . . . . . . . . . . . . Unidentified Prototypes . | . . . . . . . . . . . . . Parts Lost 2 | . . . . . . . 1 . . . . 1 Power . | . . . . . . . . . . . . . Propulsion 2 | . . . . . . . 1 . . . . 1 Utility . | . . . . . . . . . . . . . Weapon . | . . . . . . . . . . . . . Highest Loss Streak 1 | . . . . . . . 1 . . . . 1 Average Slot Usage (%) 1 | . . . . . . . . 1 6 6 . 3 Flight 1 | . . . . . . . . 1 6 6 . 3 Naked Turns 577 | . 58 66 44 41 32 139 117 36 . . . 44 Heaviest Build . | . . . . . . . . . . . . . Greatest Support 7 | 3 3 3 3 3 3 3 6 7 7 7 7 7 Greatest Overweight (x) . | . . . . . . . . . . . . . Average Overweight (x) . | . . . . . . . . . . . . . Largest Inventory Capacity 5 | 5 5 5 5 5 5 5 5 5 5 5 5 5 Average Capacity 5 | 5 5 5 5 5 5 5 5 5 5 5 5 5 Most Carried . | . . . . . . . . . . . . . Average Carried . | . . . . . . . . . . . . . Final Capacity 5 | 5 5 5 5 5 5 5 5 5 5 5 5 5 Final Carried . | . . . . . . . . . . . . . Class Distribution -------------------- 100% | Mutant Dominant Class ---------------- Mutant | -10/Materials Mutant | -9/Materials Mutant | -8/Materials Mutant | -7/Factory Mutant | -7/Waste Mutant | -7/Factory Mutant | -6/Factory Mutant | -6/Waste Mutant | -6/Factory Mutant | -6/Lower Caves Mutant | -6/Lower Caves Mutant | -5/Factory Resources | -11 -10 -9 -8 -7 -7 -7 -6 -6 -6 -6 -6 -5 ----------- Run | Scr Mat Mat Mat Fac Was Fac Fac Was Fac Low Low Fac Matter Collected 216 | 134 . . . . . 62 . . . 20 . . Remotely . | . . . . . . . . . . . . . Salvage Created . | . . . . . . . . . . . . . Parts . | . . . . . . . . . . . . . Haulers Intercepted . | . . . . . . . . . . . . . Recyclers Shooed . | . . . . . . . . . . . . . Parts Field Recycled . | . . . . . . . . . . . . . Retrieved Matter . | . . . . . . . . . . . . . Parts Self-Destructed . | . . . . . . . . . . . . . Prevented . | . . . . . . . . . . . . . Kills | -11 -10 -9 -8 -7 -7 -7 -6 -6 -6 -6 -6 -5 ------- Run | Scr Mat Mat Mat Fac Was Fac Fac Was Fac Low Low Fac Combat Hostiles Destroyed . | . . . . . . . . . . . . . Classes Destroyed . | . . . . . . . . . . . . . Best Kill Streak . | . . . . . . . . . . . . . Combat Bots Only . | . . . . . . . . . . . . . Max Kills in Single Turn . | . . . . . . . . . . . . . Gunslinging . | . . . . . . . . . . . . . Exploded . | . . . . . . . . . . . . . Melee . | . . . . . . . . . . . . . Uniques/NPCs Destroyed . | . . . . . . . . . . . . . Combat | -11 -10 -9 -8 -7 -7 -7 -6 -6 -6 -6 -6 -5 -------- Run | Scr Mat Mat Mat Fac Was Fac Fac Was Fac Low Low Fac Damage Taken 2298 | . . 318 . . . 664 276 . . . 7 1033 Core 2261 | . . 318 . . . 664 262 . . . 7 1010 Absorbed by Shields . | . . . . . . . . . . . . . Core Remaining (%) 65 | 100 100 20 100 . . 5 . . . . 68 . Volleys Fired . | . . . . . . . . . . . . . Largest . | . . . . . . . . . . . . . Hottest . | . . . . . . . . . . . . . Shots Fired . | . . . . . . . . . . . . . Gun . | . . . . . . . . . . . . . Cannon . | . . . . . . . . . . . . . Launcher . | . . . . . . . . . . . . . Special . | . . . . . . . . . . . . . Kinetic . | . . . . . . . . . . . . . Thermal . | . . . . . . . . . . . . . Explosive . | . . . . . . . . . . . . . Electromagnetic . | . . . . . . . . . . . . . Robot Hit Streak . | . . . . . . . . . . . . . Robot Miss Streak . | . . . . . . . . . . . . . Penetration Max . | . . . . . . . . . . . . . Secondary Targets . | . . . . . . . . . . . . . Shots Hit Robots . | . . . . . . . . . . . . . Core Hits 1 | . . . . . . 1 . . . . . . Critical Kills . | . . . . . . . . . . . . . Critical Parts Destroyed . | . . . . . . . . . . . . . Critical Strikes . | . . . . . . . . . . . . . Melee Attacks . | . . . . . . . . . . . . . Impact . | . . . . . . . . . . . . . Slashing . | . . . . . . . . . . . . . Piercing . | . . . . . . . . . . . . . Sneak Attacks . | . . . . . . . . . . . . . Combat Hostiles . | . . . . . . . . . . . . . Follow-up Attacks . | . . . . . . . . . . . . . Damage Inflicted 43 | . . 11 . . . 22 4 . . . . 6 Guns . | . . . . . . . . . . . . . Cannons . | . . . . . . . . . . . . . Explosions . | . . . . . . . . . . . . . Melee . | . . . . . . . . . . . . . Ramming 43 | . . 11 . . . 22 4 . . . . 6 Kinetic . | . . . . . . . . . . . . . Thermal . | . . . . . . . . . . . . . Explosive . | . . . . . . . . . . . . . Electromagnetic . | . . . . . . . . . . . . . Impact . | . . . . . . . . . . . . . Slashing . | . . . . . . . . . . . . . Piercing . | . . . . . . . . . . . . . Highest Corruption 8 | . . . . . 8 8 1 1 1 1 1 . Average Corruption 4 | . . . . . 8 8 1 1 1 1 1 . Corruption Purged . | . . . . . . . . . . . . . Effects 6 | . . . . . 1 5 . . . . . . Message Errors 2 | . . . . . . 2 . . . . . . Matter Fused 4 | . . . . . 1 3 . . . . . . Overload Shots . | . . . . . . . . . . . . . Overflow Damage . | . . . . . . . . . . . . . Projectiles . | . . . . . . . . . . . . . Explosions . | . . . . . . . . . . . . . Melee . | . . . . . . . . . . . . . Knockbacks . | . . . . . . . . . . . . . Impact . | . . . . . . . . . . . . . Kinetic . | . . . . . . . . . . . . . Secondary . | . . . . . . . . . . . . . Self-Inflicted Damage 19 | . . 5 . . . 9 2 . . . . 3 Shots . | . . . . . . . . . . . . . Rammed 10 | . . 3 . . . 5 1 . . . . 1 Targets Rammed 10 | . . 3 . . . 5 1 . . . . 1 Kicked . | . . . . . . . . . . . . . Crushed . | . . . . . . . . . . . . . Highest Temperature . | . . . . . . . . . . . . . Average Temperature . | . . . . . . . . . . . . . Received Heat Transfer 162 | . . 90 . . . 27 45 . . . . . Siege Activations . | . . . . . . . . . . . . . Robots Corrupted . | . . . . . . . . . . . . . Combat Hostiles . | . . . . . . . . . . . . . Parts Fried . | . . . . . . . . . . . . . Impact Corruptions . | . . . . . . . . . . . . . Robots Melted . | . . . . . . . . . . . . . Combat Hostiles . | . . . . . . . . . . . . . Parts Melted . | . . . . . . . . . . . . . Heat Transferred . | . . . . . . . . . . . . . Parts Sabotaged . | . . . . . . . . . . . . . Parts Stolen . | . . . . . . . . . . . . . Parts Stripped . | . . . . . . . . . . . . . Power Chain Reactions . | . . . . . . . . . . . . . Missiles Intercepted . | . . . . . . . . . . . . . Alert | -11 -10 -9 -8 -7 -7 -7 -6 -6 -6 -6 -6 -5 ------- Run | Scr Mat Mat Mat Fac Was Fac Fac Was Fac Low Low Fac Peak Influence 132 | . . 105 59 26 39 132 99 34 23 . . 41 Initial 64 | . . . 44 26 9 27 64 34 23 . . 6 Average 45 | . . 48 50 26 25 62 75 34 23 . . 32 Maximum Alert Level . | . . . . . . . . . . . . . Low Security (%) 100 | 100 100 100 100 100 100 100 100 100 100 . . 100 Level 1 . | . . . . . . . . . . . . . Level 2 . | . . . . . . . . . . . . . Level 3 . | . . . . . . . . . . . . . Level 4 . | . . . . . . . . . . . . . Level 5 . | . . . . . . . . . . . . . High Security . | . . . . . . . . . . . . . Max Security . | . . . . . . . . . . . . . Squads Dispatched 5 | . 1 2 . . . 1 . . . . . 1 Investigation 1 | . . . . . . 1 . . . . . . Extermination . | . . . . . . . . . . . . . Reinforcement 4 | . 1 2 . . . . . . . . . 1 Assault . | . . . . . . . . . . . . . Garrison . | . . . . . . . . . . . . . Intercept . | . . . . . . . . . . . . . Construction Impeded . | . . . . . . . . . . . . . Haulers Reinforced . | . . . . . . . . . . . . . Active Scanning Responses . | . . . . . . . . . . . . . Cargo Convoy Interrupts . | . . . . . . . . . . . . . Stealth | -11 -10 -9 -8 -7 -7 -7 -6 -6 -6 -6 -6 -5 --------- Run | Scr Mat Mat Mat Fac Was Fac Fac Was Fac Low Low Fac Distress Signals 2 | . . 2 . . . . . . . . . . Communications Jammed . | . . . . . . . . . . . . . Distress Signals . | . . . . . . . . . . . . . Times Spotted 50 | . 1 15 2 . 3 8 5 . . . 1 15 Peak Tracking Total 15 | . . 15 2 . 3 7 3 . . . 1 8 Tactical Retreats 5 | . . 2 . . . 2 . . . . . 1 Traps | -11 -10 -9 -8 -7 -7 -7 -6 -6 -6 -6 -6 -5 ------- Run | Scr Mat Mat Mat Fac Was Fac Fac Was Fac Low Low Fac Traps Triggered 4 | . . . . 1 . 1 1 . . . . 1 Indirectly . | . . . . . . . . . . . . . Trap Hack Attempts . | . . . . . . . . . . . . . Triggered . | . . . . . . . . . . . . . Disarmed . | . . . . . . . . . . . . . Reprogrammed . | . . . . . . . . . . . . . Reused . | . . . . . . . . . . . . . Traps Extracted . | . . . . . . . . . . . . . Installed . | . . . . . . . . . . . . . Triggered . | . . . . . . . . . . . . . Machines | -11 -10 -9 -8 -7 -7 -7 -6 -6 -6 -6 -6 -5 ---------- Run | Scr Mat Mat Mat Fac Was Fac Fac Was Fac Low Low Fac Machines Disabled . | . . . . . . . . . . . . . Max in Single Turn . | . . . . . . . . . . . . . Machines Sabotaged . | . . . . . . . . . . . . . Garrisons Compromised . | . . . . . . . . . . . . . Overloaded Fab Kills . | . . . . . . . . . . . . . Fab Network Shutdowns . | . . . . . . . . . . . . . Hacking | -11 -10 -9 -8 -7 -7 -7 -6 -6 -6 -6 -6 -5 --------- Run | Scr Mat Mat Mat Fac Was Fac Fac Was Fac Low Low Fac Machines Accessed 2 | . . . . 1 . 1 . . . . . . Terminals 2 | . . . . 1 . 1 . . . . . . Fabricators . | . . . . . . . . . . . . . Repair Stations . | . . . . . . . . . . . . . Recycling Units . | . . . . . . . . . . . . . Scanalyzers . | . . . . . . . . . . . . . Garrison Access . | . . . . . . . . . . . . . Total Hacks 3 | . . . . 1 . 2 . . . . . . Successful . | . . . . . . . . . . . . . Failed 3 | . . . . 1 . 2 . . . . . . Catastrophic 1 | . . . . 1 . . . . . . . . Database Lockouts . | . . . . . . . . . . . . . Manual 1 | . . . . 1 . . . . . . . . Terminals 3 | . . . . 1 . 2 . . . . . . Fabricators . | . . . . . . . . . . . . . Repair Stations . | . . . . . . . . . . . . . Recycling Units . | . . . . . . . . . . . . . Scanalyzers . | . . . . . . . . . . . . . Garrison Access . | . . . . . . . . . . . . . Terminal Hacks . | . . . . . . . . . . . . . Fabricator Hacks . | . . . . . . . . . . . . . Repair Station Hacks . | . . . . . . . . . . . . . Recycling Unit Hacks . | . . . . . . . . . . . . . Scanalyzer . | . . . . . . . . . . . . . Garrison Access Hacks . | . . . . . . . . . . . . . Unauthorized Hacks . | . . . . . . . . . . . . . Terminals . | . . . . . . . . . . . . . Fabricators . | . . . . . . . . . . . . . Repair Stations . | . . . . . . . . . . . . . Recycling Units . | . . . . . . . . . . . . . Scanalyzers . | . . . . . . . . . . . . . Garrison Access . | . . . . . . . . . . . . . Data Cores Recovered . | . . . . . . . . . . . . . Used . | . . . . . . . . . . . . . Hacking Detections 2 | . . . . 1 . 1 . . . . . . Full Trace Events . | . . . . . . . . . . . . . Feedback Events . | . . . . . . . . . . . . . Feedback Blocked . | . . . . . . . . . . . . . Robot Schematics Acquired . | . . . . . . . . . . . . . Robots Built . | . . . . . . . . . . . . . Matter . | . . . . . . . . . . . . . Time . | . . . . . . . . . . . . . Total Robot Build Rating . | . . . . . . . . . . . . . Part Schematics Acquired . | . . . . . . . . . . . . . Parts Built . | . . . . . . . . . . . . . Matter . | . . . . . . . . . . . . . Time . | . . . . . . . . . . . . . Total Part Build Rating . | . . . . . . . . . . . . . Parts Repaired . | . . . . . . . . . . . . . Time . | . . . . . . . . . . . . . Parts Recycled . | . . . . . . . . . . . . . Recycled Matter . | . . . . . . . . . . . . . Retrieved Matter . | . . . . . . . . . . . . . Retrieved Components . | . . . . . . . . . . . . . Parts Scanalyzed . | . . . . . . . . . . . . . Part Schematics Acquired . | . . . . . . . . . . . . . Parts Damaged . | . . . . . . . . . . . . . Bothacking | -11 -10 -9 -8 -7 -7 -7 -6 -6 -6 -6 -6 -5 ------------ Run | Scr Mat Mat Mat Fac Was Fac Fac Was Fac Low Low Fac Used RIF Installer . | . . . . . . . . . . . . . Robots Hacked . | . . . . . . . . . . . . . Non-combat . | . . . . . . . . . . . . . Combat . | . . . . . . . . . . . . . Robot Hacks Applied . | . . . . . . . . . . . . . Relay Couplers Released . | . . . . . . . . . . . . . Robots Rewired . | . . . . . . . . . . . . . Allies Hacked . | . . . . . . . . . . . . . Hacks Repelled . | . . . . . . . . . . . . . Allies | -11 -10 -9 -8 -7 -7 -7 -6 -6 -6 -6 -6 -5 -------- Run | Scr Mat Mat Mat Fac Was Fac Fac Was Fac Low Low Fac Total Allies . | . . . . . . . . . . . . . Largest Group . | . . . . . . . . . . . . . Highest-Rated Group . | . . . . . . . . . . . . . Highest-Rated Ally . | . . . . . . . . . . . . . Total Orders . | . . . . . . . . . . . . . Ally Attacks . | . . . . . . . . . . . . . Total Damage . | . . . . . . . . . . . . . Kills . | . . . . . . . . . . . . . Allies Corrupted . | . . . . . . . . . . . . . Allies Melted . | . . . . . . . . . . . . . Intel | -11 -10 -9 -8 -7 -7 -7 -6 -6 -6 -6 -6 -5 ------- Run | Scr Mat Mat Mat Fac Was Fac Fac Was Fac Low Low Fac Robot Analysis Total . | . . . . . . . . . . . . . Derelict Logs Recovered . | . . . . . . . . . . . . . Drone Launches . | . . . . . . . . . . . . . Drone Recoveries . | . . . . . . . . . . . . . Exploration | -11 -10 -9 -8 -7 -7 -7 -6 -6 -6 -6 -6 -5 ------------- Run | Scr Mat Mat Mat Fac Was Fac Fac Was Fac Low Low Fac Turns Passed 763 | 10 58 66 44 41 32 139 126 51 8 69 4 115 Spaces Moved 1533 | 20 116 125 88 81 63 268 247 102 18 153 9 243 Core 1143 | 20 116 125 88 81 63 268 227 70 . . . 85 Treads . | . . . . . . . . . . . . . Legs . | . . . . . . . . . . . . . Wheels . | . . . . . . . . . . . . . Hover . | . . . . . . . . . . . . . Flight 390 | . . . . . . . 20 32 18 153 9 158 Fastest Speed 40 | 50 50 50 50 50 50 50 40 45 45 45 45 45 Average Speed 48 | 50 50 50 50 50 50 50 49 48 45 45 45 46 Slowest Speed 50 | 50 50 50 50 50 50 50 50 50 45 45 45 50 Overloaded Moves . | . . . . . . . . . . . . . Propulsion Burnouts . | . . . . . . . . . . . . . Robots Hopped 3 | . . . . . . . . . . . . 3 Cave-ins Triggered . | . . . . . . . . . . . . . Exploration Rate (%) 22 | 3 25 24 15 3 65 13 10 75 1 39 2 12 Regions Visited 12 Branch Regions 2 Pre-discovered Areas . | . . . . . . . . . . . . . Known Exits Taken . | . . . . . . . . . . . . . Unknown Exits Taken 8 | 1 1 1 1 . . 1 . . 1 1 1 . Scrap Searched 2 | . . . . . . . . . . 1 1 . Spaces Dug . | . . . . . . . . . . . . . Terrain Destroyed . | . . . . . . . . . . . . . Melee . | . . . . . . . . . . . . . Projectile . | . . . . . . . . . . . . . AOE . | . . . . . . . . . . . . . Terrain Rammed . | . . . . . . . . . . . . . Walls Destroyed . | . . . . . . . . . . . . . Machines Disabled . | . . . . . . . . . . . . . Actions | -11 -10 -9 -8 -7 -7 -7 -6 -6 -6 -6 -6 -5 --------- Run | Scr Mat Mat Mat Fac Was Fac Fac Was Fac Low Low Fac Total 1534 | 19 115 127 87 81 62 272 251 102 17 152 8 241 Wait 2 | . . . . . . . 2 . . . . . Move 1518 | 19 115 124 87 81 62 267 247 101 17 152 8 238 Hop 2 | . . . . . . . . . . . . 2 Pick Up . | . . . . . . . . . . . . . Fast Attach 2 | . . . . . . . 1 1 . . . . Attach . | . . . . . . . . . . . . . Detach . | . . . . . . . . . . . . . Swap . | . . . . . . . . . . . . . Drop . | . . . . . . . . . . . . . Fire . | . . . . . . . . . . . . . Melee . | . . . . . . . . . . . . . Ram 10 | . . 3 . . . 5 1 . . . . 1 Kick . | . . . . . . . . . . . . . Crush . | . . . . . . . . . . . . . Escape Stasis . | . . . . . . . . . . . . . Rewire . | . . . . . . . . . . . . . Trap . | . . . . . . . . . . . . . Miscellaneous . | . . . . . . . . . . . . . Route ------- -11/Scrapyard -10/Materials -9/Materials -8/Materials -7/Factory -7/Waste -7/Factory -6/Factory -6/Waste -6/Factory -6/Lower Caves -6/Lower Caves -5/Factory History --------- Turn | Location | Event 4 | -11/Scrapyard | Discovered new exit (range 15) 11 | -11/Scrapyard | Entered Materials 64 | -10/Materials | Discovered new exit (range 9) 69 | -10/Materials | Entered another Materials area 69 | -9/Materials | Evolved 2 slots: Propulsion x2 98 | -9/Materials | Core integrity fell below 50% 127 | -9/Materials | Discovered new exit (range 16) 135 | -9/Materials | Entered another Materials area 135 | -8/Materials | Evolved 2 slots: Propulsion x2 172 | -8/Materials | Discovered new exit (range 15) 179 | -8/Materials | Entered Factory 179 | -7/Factory | Evolved 2 slots: Propulsion x2 220 | -7/Factory | Sucked down chute 220 | -7/Factory | Entered Waste 224 | -7/Waste | Spotted C-40 Crusher 232 | -7/Waste | Spotted C-40 Crusher 233 | -7/Waste | Spotted C-40 Crusher 235 | -7/Waste | EMP discharged 236 | -7/Waste | Spotted C-40 Crusher 244 | -7/Waste | Discovered new exit (range 16) 252 | -7/Waste | Entered Factory 305 | -7/Factory | Build established: Mutant 327 | -7/Factory | Core integrity fell below 50% 359 | -7/Factory | Core integrity fell below 20% 389 | -7/Factory | Discovered new exit (range 4) 391 | -7/Factory | Entered another Factory area 391 | -6/Factory | Evolved 2 slots: Utility x2 517 | -6/Factory | Sucked down chute 517 | -6/Factory | Entered Waste 517 | -6/Waste | The area was eerily silent 563 | -6/Waste | Discovered new exit (range 11) 568 | -6/Waste | Entered Factory 573 | -6/Factory | Discovered new exit (range 7) 576 | -6/Factory | Entered Lower Caves 643 | -6/Lower Caves | Discovered new exit (range 5) 645 | -6/Lower Caves | Entered another Lower Caves area 645 | -6/Lower Caves | Discovered new exit (range 9) 649 | -6/Lower Caves | Entered Factory 649 | -5/Factory | Evolved 2 slots: Utility x2 655 | -5/Factory | Spotted B-75 Beast 743 | -5/Factory | Core integrity fell below 50% 753 | -5/Factory | Core integrity fell below 20% 764 | -5/Factory | Destroyed by S-27 Virus with Autogun Last Messages --------------- 00720_ Triggered Proton Bomb Trap. 00720_ A bubble of electromagnetic force engulfs the area. 00720_ Nuclear Reactor explodes. 00720_ K-01 Serf destroyed. 00720_ Penetrated by Slug. 00720_ Field Propulsion Drive destroyed. 00727_ The unstable cave ceiling collapses. 00742_ Nuclear Reactor explodes. 00749_ U-05 Engineer lays Concrete. 00752_ Nuclear Reactor explodes. 00752_ S-27 Virus destroyed. 00752_ Nuclear Reactor explodes. 00752_ S-27 Virus destroyed. 00752_ U-05 Engineer destroyed. 00752_ Nuclear Reactor explodes. 00752_ S-27 Virus destroyed. 00752_ K-01 Serf destroyed. 00753_ U-05 Engineer lays Concrete. 00755_ Slammed into S-27 Virus. 00756_ U-05 Engineer lays Concrete. Map ----- +----------------------------------------------------+ | "" #?????????????????? | | #?????????????????? | | #+####?????????????????? | | #????????????????????? | | #????????????????????? | | # #????????????????????? | | # #????????????????????? | | # #????????????????????? | | # #????????????????????? | | # #????????????????????? | | # #????????????????????? | | # ###????????????????????? | | ############ #??????????????????????? | | ???????##### """ """ #??????????????????????? | | ???????+ """ """ #??????????????????????? | | ???????# %""" """s #??????????????????????? | | ???????# s #??????????????????????? | | ???????# """ """s #??????????????????????? | | ???????# """u""" #??????????????????????? | | ???????# """ """ #??????????????????????? | | ???????# ss +??????????????????????? | | ???????+ """ """ #??????????????????????? | | ???????# """ """ #??????????????????????? | | ???????# """ """ #??????????????????????? | | ???????# ##?????????????????????? | | ???????# """ """ @ #?????????????????????? | | ???????# """ """ #?????????????????????? | | ???????# ?"" """ #?????????????????????? | | ???????# ?? #?????????????????????? | | ???????#? ? #?????????????????????? | | ??????????? ##?????????????????????? | | ????????????? #??????????????????????? | | ???????????? k #??????????????????????? | | ?????????????#### ##### #??????????????????????? | | ????????????????#+????# ???????????????????????? | | ??????????????????????# ???????????????????????? | | ??????????????????????# ???????????????????????? | | ??????????????????????+ ???????????????????????? | | ??????????????????????# ???????????????????????? | | ??????????????????????# ???????????????????????? | | ??????????????????????? ???????????????????????? | | ?????????????????????????????????????????????????? | | ?????????????????????????????????????????????????? | | ?????????????????????????????????????????????????? | | ?????????????????????????????????????????????????? | | ?????????????????????????????????????????????????? | | ?????????????????????????????????????????????????? | | ?????????????????????????????????????????????????? | | ?????????????????????????????????????????????????? | | ?????????????????????????????????????????????????? | +----------------------------------------------------+ Best States ------------- Heat Dissipation 40 Energy Generation 5 Energy Capacity 100 Matter Stores 300 Matter Capacity 300 Sight Range 16 Terrain Scan Density 10 Evasion (%) 62 Item Schematics ----------------- None Robot Schematics ------------------ None Fabricated ------------ Nothing Alien Tech Used ----------------- None Achievements -------------- None Challenges ------------ None Game ------ Seed MachineReactiveTendrils Manual? 0 Play Time 00:13:02 Cumulative 1088.4 hours Start 2021.08.25 @ 10:14:35 End 2021.08.25 @ 10:25:52 Sessions 1 Manual Loads 0 Difficulty Rogue Special Mode None Game No. 685 Rogue 685 Adventurer 0 Explorer 0 Win Type - Total 18 Types 10/1/4/3/0/0/0/0/0 Lore% 89 Gallery% 90 Achievement% 81 Wizard Run 0 Options --------- ASCII 0 Keyboard 0 Movement Mouse Keybinds 0 Fullscreen 1 Font 24/Smallcaps Map View 76x50 Tactical HUD 1 Map Filters NONE Filters NONE Steam 1 RUN: 1770972e-71b9-41cc-9a0d-a3295a3fbf99